fUSD/lending_fUSD_20241121
["ID","MTS","AMOUNT","RATE_DAILY","PERIOD"]
[342914780,1732204092727,-167.76,0.00034336,120]
[342914781,1732204092757,-177.22,0.00034453,120]
[342914782,1732204092783,-600.0,0.00036,120]
[342914783,1732204092810,-167.76,0.0003692,120]
[342914784,1732204092836,-336.95,0.00037271,120]
[342914785,1732204092861,-1211.09682993,0.00038,120]
[342914786,1732204092886,-249.39087428,0.00038,120]
[342914787,1732204092911,-1500.0,0.00038292,120]
[342914788,1732204093317,-161.41,0.00038453,30]
[342914789,1732204093360,-30662.89,0.00039,120]
[342914790,1732204093409,-167.76,0.00039504,120]
[342914791,1732204093444,-3000.0,0.00039799,120]
[342914792,1732204093469,-661.46610465,0.00039862,120]
[342914793,1732204093507,-12500.0,0.0004,120]
[342914794,1732204093537,-1211.09682993,0.0004,120]
[342914795,1732204093564,-249.39087428,0.0004,120]
[342914796,1732204093589,-8000.0,0.0004,120]
[342914797,1732204093615,-153142.6917237,0.0004,120]
[342914798,1732204093641,-1956.28,0.0004,120]
[342914799,1732204093674,-8000.0,0.000401,120]
[342914800,1732204093707,-12500.0,0.00040125,120]
[342914801,1732204093732,-8000.0,0.000402,120]
[342914802,1732204093762,-12500.0,0.0004025,120]
[342914803,1732204093806,-7648.51,0.000403,120]
[342914804,1732204093833,-12500.0,0.00040375,120]
[342914805,1732204093860,-175.51257636,0.00040438,30]
[342914806,1732204093886,-12500.0,0.000405,120]
[342914807,1732204093911,-156.566,0.0004051,120]
[342914808,1732204093950,-12500.0,0.00040625,120]
[342914809,1732204093975,-1956.28,0.00040657,120]
[342914810,1732204094004,-12500.0,0.0004075,120]
[342914811,1732204094042,-12500.0,0.00040875,120]
[342914812,1732204094068,-195.01397374,0.00040959,30]
[342914813,1732204094092,-175.51257636,0.00040959,30]
[342914814,1732204094122,-50000.0,0.00041,33]
[342914815,1732204094146,-12500.0,0.00041,120]
[342914816,1732204094172,-250.0,0.00041,120]
[342914817,1732204094196,-2017.0,0.00041,117]
[342914818,1732204094221,-1500.78198442,0.00041094,120]
[342914819,1732204094247,-500.0,0.00041094,120]
[342914820,1732204094288,-500.0,0.00041095,60]
[342914821,1732204094312,-500.0,0.00041095,60]
[342914822,1732204094337,-500.0,0.00041095,60]
[342914823,1732204094361,-500.0,0.00041095,60]
[342914824,1732204094385,-500.0,0.00041095,60]
[342914825,1732204094408,-500.0,0.00041095,60]
[342914826,1732204094431,-500.0,0.00041095,60]
[342914827,1732204094455,-500.0,0.00041095,60]
[342914828,1732204094482,-500.0,0.00041095,60]
[342914829,1732204094509,-500.0,0.00041095,60]
[342914830,1732204094542,-500.0,0.00041095,60]
[342914831,1732204094583,-12500.0,0.00041125,120]
[342914832,1732204094609,-663.05,0.0004122,120]
[342914833,1732204094635,-12500.0,0.0004125,120]
[342914834,1732204094662,-1956.28,0.00041315,120]
[342914835,1732204094691,-500.0,0.00041368,120]
[342914836,1732204094729,-500.0,0.00041369,60]
[342914837,1732204094763,-12500.0,0.00041375,120]
[342914838,1732204094795,-336.95,0.00041412,120]
[342914839,1732204094820,-2981.35,0.000415,120]
[342914840,1732204094844,-195.01397374,0.00041507,30]
[342914841,1732204094870,-175.51257636,0.00041507,30]
[342914842,1732204094900,-500.0,0.00041642,120]
[342914843,1732204094938,-500.0,0.00041643,60]
[342914844,1732204094972,-194.6276439,0.00041724,120]
[342914845,1732204094996,-1054.0,0.00041784,30]
[342914846,1732204095034,-211.27450731,0.00041893,30]
[342914847,1732204095064,-604.3373983,0.00041916,120]
[342914848,1732204095100,-500.0,0.00041917,60]
[342914849,1732204095233,-500.0,0.00041917,120]
[342914850,1732204095262,-534.48673002,0.00041917,120]
[342914851,1732204095292,-1956.28,0.00041972,120]
[342914852,1732204095317,-1150.91607306,0.00041999,60]
[342914853,1732204095345,-50000.0,0.00042,33]
[342914854,1732204095447,-250.0,0.00042,120]
[342914855,1732204095474,-195.01397374,0.00042027,30]
[342914856,1732204095499,-175.51257636,0.00042027,30]
[342914857,1732204095529,-167.76,0.00042088,120]
[342914858,1732204095554,-2000.0,0.00042163,120]
[342914859,1732204095578,-500.0,0.00042163,120]
[342914860,1732204095603,-500.0,0.00042163,120]
[342914861,1732204095629,-205.045397,0.00042163,120]
[342914862,1732204095653,-1150.91607306,0.00042189,60]
[342914863,1732204095678,-1150.91607306,0.0004219,60]
[342914864,1732204095714,-500.0,0.00042191,60]
[342914865,1732204095743,-3000.0,0.0004231,44]
[342914866,1732204095778,-500.0,0.00042465,60]
[342914867,1732204095806,-363.0,0.000425,30]
[342914868,1732204095830,-1000.0,0.000425,30]
[342914869,1732204095854,-228.23,0.0004256,120]
[342914870,1732204095878,-228.231,0.0004256,120]
[342914871,1732204095901,-228.231,0.0004256,120]
[342914872,1732204095926,-228.231,0.0004256,120]
[342914873,1732204095950,-228.231,0.0004256,120]
[342914874,1732204095973,-175.51257636,0.00042575,30]
[342914875,1732204095997,-429.17,0.000426,30]
[342914876,1732204096024,-764.41,0.000426,30]
[342914877,1732204096048,-433.33,0.000426,30]
[342914878,1732204096074,-764.41,0.000426,30]
[342914879,1732204096097,-433.33,0.000426,30]
[342914880,1732204096121,-433.33,0.000426,30]
[342914881,1732204096146,-764.41,0.000426,30]
[342914882,1732204096169,-764.41,0.000426,30]
[342914883,1732204096194,-433.33,0.000426,30]
[342914884,1732204096218,-764.41,0.000426,30]
[342914885,1732204096243,-433.33,0.000426,30]
[342914886,1732204096271,-603.92,0.000426,30]
[342914887,1732204096294,-764.41,0.000426,30]
[342914888,1732204096318,-764.41,0.000426,30]
[342914889,1732204096342,-764.41,0.000426,30]
[342914890,1732204096368,-764.41,0.000426,30]
[342914891,1732204096392,-764.41,0.000426,30]
[342914892,1732204096415,-579.54,0.000426,30]
[342914893,1732204096440,-1956.28,0.0004263,120]
[342914894,1732204096465,-1005.62,0.000427,63]
[342914895,1732204096489,-297.14,0.00042732,30]
[342914896,1732204096515,-151.54,0.00042737,30]
[342914897,1732204096540,-362.63,0.00042737,30]
[342914898,1732204096565,-150.0,0.00042737,30]
[342914899,1732204096590,-150.0,0.00042737,30]
[342914900,1732204096613,-150.0,0.00042737,30]
[342914901,1732204096636,-150.0,0.00042737,30]
[342914902,1732204096660,-433.47,0.00042737,30]
[342914903,1732204096683,-433.47,0.00042737,30]
[342914904,1732204096706,-362.63,0.00042737,30]
[342914905,1732204096730,-150.0,0.00042737,30]
[342914906,1732204096756,-150.0,0.00042737,30]
[342914907,1732204096780,-150.0,0.00042737,30]
[342914908,1732204096804,-362.63,0.00042737,30]
[342914909,1732204096827,-150.0,0.00042737,30]
[342914910,1732204096852,-433.47,0.00042737,30]
[342914911,1732204096878,-150.0,0.00042737,30]
[342914912,1732204096905,-150.0,0.00042737,30]
[342914913,1732204096930,-433.47,0.00042737,30]
[342914914,1732204096956,-150.0,0.00042737,30]
[342914915,1732204096984,-150.0,0.00042737,30]
[342914916,1732204097013,-362.63,0.00042737,30]
[342914917,1732204097038,-433.47,0.00042737,30]
[342914918,1732204097068,-150.0,0.00042737,30]
[342914919,1732204097100,-150.0,0.00042737,30]
[342914920,1732204097125,-150.0,0.00042737,30]
[342914921,1732204097155,-362.63,0.00042737,30]
[342914922,1732204097178,-150.0,0.00042737,30]
[342914923,1732204097202,-150.0,0.00042737,30]
[342914924,1732204097226,-150.0,0.00042737,30]
[342914925,1732204097253,-362.63,0.00042737,30]
[342914926,1732204097278,-433.47,0.00042737,30]
[342914927,1732204097303,-150.0,0.00042737,30]
[342914928,1732204097327,-150.0,0.00042737,30]
[342914929,1732204097352,-150.0,0.00042737,30]
[342914930,1732204097377,-362.63,0.00042737,30]
[342914931,1732204097401,-433.47,0.00042737,30]
[342914932,1732204097425,-150.0,0.00042737,30]
[342914933,1732204097449,-150.0,0.00042737,30]
[342914934,1732204097474,-150.0,0.00042737,30]
[342914935,1732204097498,-359.53,0.00042737,30]
[342914936,1732204097530,-433.47,0.00042737,30]
[342914937,1732204097553,-150.0,0.00042737,30]
[342914938,1732204097577,-150.0,0.00042737,30]
[342914939,1732204097601,-150.0,0.00042737,30]
[342914940,1732204097624,-150.0,0.00042737,30]
[342914941,1732204097649,-150.0,0.00042737,30]
[342914942,1732204097673,-150.0,0.00042737,30]
[342914943,1732204097697,-426.23,0.00042737,30]
[342914944,1732204097721,-433.47,0.00042737,30]
[342914945,1732204097745,-150.0,0.00042737,30]
[342914946,1732204097774,-362.63,0.00042737,30]
[342914947,1732204097798,-173.5,0.00042737,30]
[342914948,1732204097821,-362.63,0.00042737,30]
[342914949,1732204097845,-150.0,0.00042737,30]
[342914950,1732204097868,-433.47,0.00042737,30]
[342914951,1732204097893,-290.31,0.00042737,30]
[342914952,1732204097916,-150.0,0.00042737,30]
[342914953,1732204097945,-433.47,0.00042737,30]
[342914954,1732204097969,-362.63,0.00042737,30]
[342914955,1732204097993,-433.47,0.00042737,30]
[342914956,1732204098021,-362.63,0.00042737,30]
[342914957,1732204098232,-500.0,0.00042739,60]
[342914958,1732204098263,-23576.36696463,0.00042989,120]
[342914959,1732204098288,-18344.53225187,0.00042989,30]
[342914960,1732204098312,-797932.51249178,0.0004299,30]
[342914961,1732204098337,-500.0,0.0004299,120]
[342914962,1732204098362,-500.0,0.0004299,120]
[342914963,1732204098386,-500.0,0.0004299,120]
[342914964,1732204098411,-500.0,0.0004299,120]
[342914965,1732204098440,-13525.70865702,0.00042999,30]
[342914966,1732204098469,-50000.0,0.00043,33]
[342914967,1732204098494,-5662.60332935,0.00043,60]
[342914968,1732204098530,-11635.13461415,0.00043,30]
[342914969,1732204098561,-39872.86444399,0.00043,30]
[342914970,1732204098590,-200.0,0.00043,120]
[342914971,1732204098618,-4872.10916272,0.00043,30]
[342914972,1732204098644,-540.46623105,0.00043,30]
[342914973,1732204098674,-38654.37852083,0.00043,120]
[342914974,1732204098700,-4093.30370435,0.00043,120]
[342914975,1732204098727,-347.29959478,0.00043,60]
[342914976,1732204098756,-59766.56978775,0.00043,30]
[342914977,1732204098781,-13383.37795263,0.00043,120]
[342914978,1732204098806,-4002.69358213,0.00043,30]
[342914979,1732204098835,-2422.19365985,0.00043,120]
[342914980,1732204098862,-498.78174855,0.00043,120]
[342914981,1732204098899,-500.0,0.00043013,60]
[342914982,1732204098929,-264.91,0.00043068,30]
[342914983,1732204098955,-337.53091802,0.0004311,120]
[342914984,1732204098981,-374.9,0.00043196,60]
[342914985,1732204099011,-500.0,0.00043254,45]
[342914986,1732204099041,-1956.28,0.00043287,120]
[342914987,1732204099076,-500.0,0.00043287,60]
[342914988,1732204099105,-185.38,0.000435,120]
[342914989,1732204099133,-420.64,0.00043559,30]
[342914990,1732204099170,-500.0,0.00043561,60]
[342914991,1732204099199,-115657.81192768,0.00043561,30]
[342914992,1732204099224,-337.53091802,0.00043589,120]
[342914993,1732204099251,-185.02713,0.00043605,30]
[342914994,1732204099279,-200.0,0.0004363,30]
[342914995,1732204099306,-204.0,0.0004363,30]
[342914996,1732204099331,-201.0,0.0004363,30]
[342914997,1732204099359,-156.61,0.0004366,120]
[342914998,1732204099388,-1005.62,0.00043665,70]
[342914999,1732204099416,-20538.54077216,0.000437,120]
[342915000,1732204099443,-979.32495699,0.000438,120]
[342915001,1732204099479,-500.0,0.00043835,60]
[342915002,1732204099512,-946.36,0.0004389,30]
[342915003,1732204099539,-565.49,0.0004389,30]
[342915004,1732204099565,-300.0,0.0004389,30]
[342915005,1732204099606,-10000.0,0.000439,120]
[342915006,1732204099636,-700.0,0.00043902,120]
[342915007,1732204099663,-1956.28,0.00043945,120]
[342915008,1732204099691,-1054.0,0.00043983,30]
[342915009,1732204099723,-50000.0,0.00044,34]
[342915010,1732204099749,-15000.0,0.00044,120]
[342915011,1732204099780,-160.0,0.00044,120]
[342915012,1732204099807,-100000.0,0.00044,120]
[342915013,1732204099833,-276.077885,0.00044,57]
[342915014,1732204099858,-500.0,0.00044058,120]
[342915015,1732204099884,-337.53091802,0.00044068,120]
[342915016,1732204099911,-9422.27305056,0.000441,120]
[342915017,1732204099941,-300.0,0.00044108,120]
[342915018,1732204099974,-500.0,0.00044109,60]
[342915019,1732204100008,-700.0,0.00044176,120]
[342915020,1732204100033,-2000.0,0.00044214,120]
[342915021,1732204100073,-391.07596453,0.00044383,60]
[342915022,1732204100103,-250000.0,0.000444,120]
[342915023,1732204100129,-700.0,0.0004445,120]
[342915024,1732204100156,-500.0,0.00044489,120]
[342915025,1732204100185,-337.53091802,0.00044547,120]
[342915026,1732204100211,-1956.28,0.00044602,120]
[342915027,1732204100238,-1005.62,0.0004463,78]
[342915028,1732204100280,-167.76,0.00044672,120]
[342915029,1732204100309,-433.47,0.00044712,30]
[342915030,1732204100336,-433.47,0.00044712,30]
[342915031,1732204100362,-433.07,0.00044712,30]
[342915032,1732204100390,-700.0,0.00044724,120]
[342915033,1732204100418,-200.0,0.000448,120]
[342915034,1732204100446,-3000.0,0.0004481,52]
[342915035,1732204100474,-999.999999,0.00044848,31]
[342915036,1732204100504,-200.0,0.0004491,30]
[342915037,1732204100532,-204.0,0.0004491,30]
[342915038,1732204100565,-201.0,0.0004491,30]
[342915039,1732204100593,-311.0,0.0004491,30]
[342915040,1732204100628,-500.0,0.00044998,120]
[342915041,1732204100659,-50000.0,0.00045,35]
[342915042,1732204100686,-800.0,0.00045,120]
[342915043,1732204100712,-9277.67238584,0.00045,60]
[342915044,1732204101040,-20010.0,0.00045,30]
[342915045,1732204101068,-373.0,0.00045,120]
[342915046,1732204101095,-150.0,0.00045,85]
[342915047,1732204101121,-31663.91537359,0.00045,60]
[342915048,1732204101148,-1782.23,0.00045,120]
[342915049,1732204101176,-50000.0,0.00045,120]
[342915050,1732204101203,-151.0,0.00045014,120]
[342915051,1732204101231,-337.53091802,0.00045026,120]
[342915052,1732204101263,-432.72,0.00045123,30]
[342915053,1732204101290,-776.81,0.00045123,30]
[342915054,1732204101316,-500.0,0.00045127,120]
[342915055,1732204101350,-1956.28,0.0004526,120]
[342915056,1732204101375,-700.0,0.00045272,120]
[342915057,1732204101403,-5121.35612197,0.000453,120]
[342915058,1732204101429,-2000.0,0.00045439,120]
[342915059,1732204101461,-337.53091802,0.00045505,120]
[342915060,1732204101487,-175759.72960812,0.00045533,120]
[342915061,1732204101523,-431.43,0.00045534,30]
[342915062,1732204101550,-150.0,0.00045534,30]
[342915063,1732204101577,-722.23,0.00045534,30]
[342915064,1732204101605,-150.0,0.00045534,30]
[342915065,1732204101631,-253.73,0.00045534,30]
[342915066,1732204101657,-150.0,0.00045534,30]
[342915067,1732204101684,-433.2,0.00045534,30]
[342915068,1732204101711,-322.42,0.00045534,30]
[342915069,1732204101735,-4438.5,0.00045538,117]
[342915070,1732204101767,-170.985451,0.0004554,30]
[342915071,1732204101793,-182.568462,0.0004554,30]
[342915072,1732204101819,-165.415214,0.0004554,30]
[342915073,1732204101845,-245.263609,0.0004554,30]
[342915074,1732204101871,-827.07607,0.0004554,30]
[342915075,1732204101896,-309.300365,0.0004554,30]
[342915076,1732204101921,-502.4867453,0.00045546,120]
[342915077,1732204101947,-336.95,0.00045553,120]
[342915078,1732204101971,-1005.62,0.00045595,85]
[342915079,1732204101996,-150.0,0.00045702,30]
[342915080,1732204102024,-151.0,0.00045702,30]
[342915081,1732204102058,-700.0,0.0004582,120]
[342915082,1732204102086,-1956.28,0.00045917,120]
[342915083,1732204102115,-337.53091802,0.00045984,120]
[342915084,1732204102141,-227.0,0.00045989,120]
[342915085,1732204102168,-500.0,0.00045998,60]
[342915086,1732204102195,-50000.0,0.00046,36]
[342915087,1732204102220,-160.0,0.00046,120]
[342915088,1732204102244,-3976.6763796,0.00046,120]
[342915089,1732204102270,-150.0,0.00046,96]
[342915090,1732204102295,-353.402148,0.00046,120]
[342915091,1732204102320,-3027.74207482,0.00046,120]
[342915092,1732204102345,-623.47718569,0.00046,120]
[342915093,1732204102372,-300.0,0.00046026,120]
[342915094,1732204102396,-300.0,0.00046026,120]
[342915095,1732204102427,-165.415214,0.00046109,30]
[342915096,1732204102453,-827.07607,0.00046109,30]
[342915097,1732204102480,-309.300365,0.00046109,30]
[342915098,1732204102510,-5000.44288,0.0004617,30]
[342915099,1732204102535,-200.0,0.0004619,30]
[342915100,1732204102561,-204.0,0.0004619,30]
[342915101,1732204102588,-201.0,0.0004619,30]
[342915102,1732204102613,-311.0,0.0004619,30]
[342915103,1732204102638,-500.0,0.00046196,120]
[342915104,1732204102665,-202.0,0.0004624,30]
[342915105,1732204102690,-1054.0,0.00046298,30]
[342915106,1732204102721,-700.0,0.00046368,120]
[342915107,1732204102746,-663.05,0.00046373,120]
[342915108,1732204102776,-337.53091802,0.00046463,120]
[342915109,1732204102802,-50000.0,0.000465,30]
[342915110,1732204102826,-377.60951331,0.00046542,120]
[342915111,1732204102850,-103079.05,0.00046553,120]
[342915112,1732204102874,-1005.62,0.0004656,93]
[342915113,1732204102900,-1956.28,0.00046575,120]
[342915114,1732204102973,-1421.75452141,0.00046575,120]
[342915115,1732204102998,-115657.81192768,0.00046575,30]
[342915116,1732204103026,-10000.0,0.000466,120]
[342915117,1732204103051,-2000.0,0.00046663,120]
[342915118,1732204103080,-165.415214,0.00046679,30]
[342915119,1732204103104,-827.07607,0.00046679,30]
[342915120,1732204103127,-309.300365,0.00046679,30]
[342915121,1732204103152,-2688.998,0.000468,110]
[342915122,1732204103177,-156.636,0.0004681,120]
[342915123,1732204103204,-50000.0,0.000469,120]
[342915124,1732204103230,-700.0,0.00046916,120]
[342915125,1732204103258,-337.53091802,0.00046942,120]
[342915126,1732204103287,-50000.0,0.00047,37]
[342915127,1732204103315,-6597.0,0.00047,120]
[342915128,1732204103340,-2000.0,0.00047,120]
[342915129,1732204103365,-194.96,0.00047,108]
[342915130,1732204103394,-1956.28,0.00047232,120]
[342915131,1732204103419,-165.415214,0.00047248,30]
[342915132,1732204103449,-827.07607,0.00047248,30]
[342915133,1732204103475,-309.300365,0.00047248,30]
[342915134,1732204103503,-167.76,0.00047256,120]
[342915135,1732204103533,-500.0,0.00047265,120]
[342915136,1732204103559,-3000.0,0.0004731,60]
[342915137,1732204103587,-181.112115,0.00047398,120]
[342915138,1732204103614,-337.53091802,0.00047421,120]
[342915139,1732204103639,-200.0,0.0004746,30]
[342915140,1732204103665,-700.0,0.00047464,120]
[342915141,1732204103690,-201.0,0.0004747,30]
[342915142,1732204103716,-204.0,0.0004747,30]
[342915143,1732204103741,-311.0,0.0004747,30]
[342915144,1732204103774,-202.0,0.000475,30]
[342915145,1732204103799,-1674.446905,0.00047525,101]
[342915146,1732204103826,-139898.95920742,0.000476,30]
[342915147,1732204103851,-92686.76515697,0.000476,120]
[342915148,1732204103875,-290114.72813294,0.000476,30]
[342915149,1732204103902,-196.67,0.00047722,120]
[342915150,1732204103935,-300.0,0.00047799,120]
[342915151,1732204103961,-331342.32425578,0.000478,30]
[342915152,1732204103988,-2766.0176,0.000478,90]
[342915153,1732204104022,-165.415214,0.00047817,30]
[342915154,1732204104048,-827.07607,0.00047817,30]
[342915155,1732204104076,-309.300365,0.00047817,30]
[342915156,1732204104105,-170.985451,0.00047817,30]
[342915157,1732204104132,-182.568462,0.00047817,30]
[342915158,1732204104159,-2000.0,0.00047888,120]
[342915159,1732204104185,-1956.28,0.0004789,120]
[342915160,1732204104212,-4000.0,0.000479,120]
[342915161,1732204104238,-4000.0,0.000479,120]
[342915162,1732204104269,-4000.0,0.000479,120]
[342915163,1732204104295,-4000.0,0.000479,120]
[342915164,1732204104320,-4000.0,0.000479,120]
[342915165,1732204104345,-4000.0,0.000479,120]
[342915166,1732204104370,-4000.0,0.000479,120]
[342915167,1732204104395,-4000.0,0.000479,120]
[342915168,1732204104420,-4000.0,0.000479,120]
[342915169,1732204104447,-4000.0,0.000479,120]
[342915170,1732204104473,-4000.0,0.000479,120]
[342915171,1732204104498,-4000.0,0.000479,120]
[342915172,1732204104527,-337.53,0.000479,120]
[342915173,1732204104553,-300.0,0.00047999,120]
[342915174,1732204104581,-50000.0,0.00048,38]
[342915175,1732204104613,-947006.40859809,0.00048,60]
[342915176,1732204110534,-471.72,0.00042737,30]
[342915177,1732204110595,-280.11446,0.00043196,60]
[342915178,1732204110757,-4999248.16554,0.00048,60]
[342915179,1732204116498,-841.5,0.00043424,60]
[342915180,1732204116635,-4999158.5,0.00048,60]
[342915181,1732204132376,-5000000.0,0.00048,60]
[342915182,1732204144913,-1500.0,0.00035616,120]
[342915183,1732204145316,-201.37410357,0.000479,120]
[342915184,1732204145340,-201.37410357,0.000479,120]
[342915185,1732204145370,-201.37410357,0.000479,120]
[342915186,1732204145399,-201.37410357,0.000479,120]
[342915187,1732204145426,-4997694.50358572,0.00048,60]
[342915188,1732204145471,-144.15424245,0.00015342,2]
[342915189,1732204145492,-150.0,0.00016485,2]
[342915190,1732204145514,-150.0,0.00018356,2]
[342915191,1732204145537,-153.0,0.00018386,2]
[342915192,1732204145558,-153.0,0.00018386,2]
[342915193,1732204145583,-174.3,0.00019178,2]
[342915194,1732204145607,-154.0,0.00021745,2]
[342915195,1732204145629,-158.33,0.00024031,2]
[342915196,1732204145651,-500.0,0.00024932,2]
[342915197,1732204145672,-1095.78028776,0.00024956,2]
[342915198,1732204145695,-173.0,0.00025056,2]
[342915199,1732204145715,-204.97,0.00025056,2]
[342915200,1732204145736,-270.35,0.00025056,2]
[342915201,1732204145758,-999.99,0.00025056,2]
[342915202,1732204145781,-300.0,0.00025377,2]
[342915203,1732204145803,-1645.449208,0.00025378,2]
[342915204,1732204145827,-161.41,0.00025636,2]
[342915205,1732204145853,-6330.57,0.00025636,2]
[342915206,1732204145875,-3453.81,0.00025636,2]
[342915207,1732204145897,-490.65703806,0.00025636,2]
[342915208,1732204150114,-2076.582956,0.00025636,2]
[342915209,1732204156103,-2003.09000594,0.00025636,2]
[342915210,1732204156124,-266.6,0.00025636,2]
[342915211,1732204156144,-786.57032484,0.00025636,2]
[342915212,1732204160161,-3043.79682537,0.00025636,2]
[342915213,1732204172259,-2049.23284979,0.00025636,2]
[342915214,1732204172283,-174.3,0.00026484,2]
[342915215,1732204172306,-6637.03,0.00026484,2]
[342915216,1732204172332,-474.94,0.00026484,2]
[342915217,1732204172356,-420.0,0.00027481,2]
[342915218,1732204172380,-154.0,0.00028147,2]
[342915219,1732204172404,-173.0,0.00029233,2]
[342915220,1732204172428,-520.0,0.0002976,2]
[342915221,1732204183781,150.0,0.00028199,2]
[342915222,1732204186587,572.4165,0.00022999,2]
[342915226,1732204224866,-164.2801123,0.00030137,2]
[342915227,1732204224892,-217.18840158,0.00031241,2]
[342915228,1732204224914,-300.0,0.00031318,2]
[342915229,1732204224938,-17077.9141617,0.00031331,2]
[342915230,1732204224961,-181.474,0.0003134,29]
[342915231,1732204224984,-2059.14332442,0.0003134,29]
[342915249,1732204232294,-90.46067558,0.0003134,29]
[342915250,1732204232303,-3881.79762687,0.0003134,2]
[342915251,1732204232314,-11812.58208166,0.0003134,2]
[342915253,1732204232323,-942.49,0.0003146,2]
[342915254,1732204232333,-250.0,0.00031664,2]
[342915255,1732204232342,-167.21,0.00032108,2]
[342915256,1732204232351,-500.0,0.00032187,2]
[342915257,1732204232361,-250.0,0.00032193,2]
[342915258,1732204232373,-572.4165,0.00032616,2]
[342915259,1732204232382,-158.33,0.0003272,2]
[342915260,1732204232391,-375.51,0.00032754,2]
[342915261,1732204232400,-375.51,0.00032763,2]
[342915262,1732204232409,-375.51,0.00032772,2]
[342915263,1732204232418,-375.51,0.0003278,2]
[342915264,1732204232427,-375.51,0.00032789,2]
[342915265,1732204232436,-375.51,0.00032797,2]
[342915266,1732204232445,-375.51,0.00032806,2]
[342915267,1732204232454,-375.51,0.00032815,2]
[342915268,1732204232463,-375.51,0.00032823,2]
[342915269,1732204232472,-375.51,0.00032832,2]
[342915270,1732204232482,-375.51,0.00032841,2]
[342915271,1732204232491,-375.51,0.00032849,2]
[342915272,1732204232501,-375.51,0.00032858,2]
[342915273,1732204232510,-375.51,0.00032867,2]
[342915274,1732204232519,-375.51,0.00032875,2]
[342915275,1732204232528,-150.0,0.00032877,2]
[342915276,1732204232537,-375.51,0.00032884,2]
[342915277,1732204232546,-375.51,0.00032892,2]
[342915278,1732204232555,-375.51,0.00032901,2]
[342915279,1732204232571,-375.51,0.0003291,2]
[342915280,1732204232583,-375.51,0.00032918,2]
[342915281,1732204232592,-164.08,0.00033077,2]
[342915282,1732204232602,-200.0,0.00033077,2]
[342915283,1732204232611,-377.31,0.0003313,2]
[342915284,1732204232626,-150.0,0.00033151,2]
[342915285,1732204232637,-500.0,0.00033209,2]
[342915286,1732204232646,-200.0,0.00033232,2]
[342915287,1732204232656,-180.72930077,0.0003335,5]
[342915288,1732204232665,-500.0,0.0003335,5]
[342915289,1732204232675,-173.0,0.00033409,2]
[342915290,1732204232684,-1000.0,0.00033444,2]
[342915291,1732204232694,-1657.29,0.00033662,2]
[342915292,1732204232703,-942.49,0.00033724,2]
[342915293,1732204232713,-150.0,0.00033742,2]
[342915294,1732204232722,-179.58,0.00033769,2]
[342915295,1732204232732,-174.3,0.0003379,2]
[342915296,1732204232742,-23900.0,0.00034137,2]
[342915297,1732204232751,-1000.0,0.00034453,2]
[342915298,1732204232761,-1000.0,0.00034521,2]
[342915299,1732204232771,-150.0,0.00034548,10]
[342915300,1732204232780,-154.0,0.00034549,2]